Cogmind - Beta 13 @@@ ROGUE MODE // 2024.07.15 @ 19:47:55 Player: APerTAS Result: Destroyed by B-36 Bruiser with Hammer Performance ------------- Evolutions (1) 500 Regions Visited (2) 400 Robots Destroyed (17) 85 Value Destroyed (442) 442 Prototype IDs (3) 60 Alien Tech Used (0) 0 Bonus (0) 0 TOTAL SCORE: 1487 Bonus ------- None Cogmind --------- Core Integrity 0/400 Matter 300/300 Energy 100/100 System Corruption 5% Temperature Cool (0) Movement Core (50) Location -9/Materials Parts ------- > --- POWER (1) -------- (None) > --- PROPULSION (2) --- (None) > --- UTILITY (4) ------ (None) > --- WEAPON (2) ------- (None) > --- INVENTORY (5) ---- Improved Ion Engine Cooling System Heavy Armor Plating Medium Laser Peak State ------------ > --- POWER ------------ Light Nuclear Core > --- PROPULSION ------- Light Treads > --- UTILITY ---------- Cooling System Small Storage Unit Sensor Array Weapon Shielding > --- WEAPON ----------- Enhanced Autogun Hammer > --- INVENTORY -------- Improved Ion Engine Improved Heat Sink Cooling System Medium Laser Small Laser Light Assault Rifle [Rating: 15] Favorites ----------- Power Light Nuclear Core Engine Improved Ion Engine Power Core Light Nuclear Core Propulsion Light Treads Treads Light Treads Utility Small Storage Unit Device Cooling System Storage Small Storage Unit Protection Weapon Shielding Weapon Light Assault Rifle Energy Gun Medium Laser Ballistic Gun Light Assault Rifle Launcher Grenade Launcher Impact Weapon Hammer Build | -11 -10 -9 ------- Run | Yrd Mat Mat Slots Evolved 2 | . . 2 Power . | . . . Propulsion . | . . . Utility 2 | . . 2 Weapon . | . . . Parts Attached 16 | 6 6 4 Power 4 | 1 3 . Engine 3 | 1 2 . Core 1 | . 1 . Reactor . | . . . Propulsion 3 | 2 . 1 Treads 3 | 2 . 1 Leg . | . . . Wheel . | . . . Hover . | . . . Flight . | . . . Utility 4 | 1 1 2 Device 2 | . . 2 Storage 1 | 1 . . Processor . | . . . Hackware . | . . . Protection 1 | . 1 . Artifact . | . . . Weapon 5 | 2 2 1 Energy Gun 1 | 1 . . Energy Cannon . | . . . Ballistic Gun 2 | 1 . 1 Ballistic Cannon . | . . . Launcher 1 | . 1 . Special Weapon . | . . . Impact Weapon 1 | . 1 . Slashing Weapon . | . . . Piercing Weapon . | . . . Special Melee Weapon . | . . . Unidentified Prototypes 1 | . . 1 Corrupted Parts 1 | . . 1 System Corruption 2 | . . 2 Parts Lost 6 | . 2 4 Power 1 | . . 1 Propulsion 2 | . 1 1 Utility 2 | . . 2 Weapon 1 | . 1 . Highest Loss Streak 3 | . 1 3 To Critical Strikes . | . . . Average Slot Usage (%) 85 | . 93 79 Engine 3 | . 8 . Core 7 | . 5 9 Treads 15 | . 24 8 Device 11 | . . 20 Storage 11 | . 14 10 Protection 11 | . 13 9 Ballistic Gun 11 | . 14 10 Launcher 2 | . 6 . Impact Weapon 8 | . 5 10 Naked Turns 50 | . . 50 Heaviest Build 19 | 11 17 19 Greatest Support 40 | 40 40 20 Greatest Overweight (x) 6 | . . 6 Average Overweight (x) . | . . . Largest Inventory Capacity 8 | 8 8 8 Average Capacity 7 | 7 8 7 Most Carried 8 | 4 8 8 Average Carried 5 | 1 6 5 Final Capacity 8 | 8 8 5 Final Carried 7 | 2 7 5 Class Distribution -------------------- 100% | Mutant Dominant Class ---------------- Mutant | -10/Materials Mutant | -9/Materials Resources | -11 -10 -9 ----------- Run | Yrd Mat Mat Matter Collected 470 | 239 208 23 Remotely . | . . . Salvage Created 594 | . 461 133 Parts 19 | . 16 3 Haulers Intercepted . | . . . Recyclers Shooed . | . . . Parts Field Recycled . | . . . Retrieved Matter . | . . . Parts Self-Destructed . | . . . Prevented . | . . . Kills | -11 -10 -9 ------- Run | Yrd Mat Mat Combat Hostiles Destroyed 10 | . 8 2 Guns 3 | . 3 . AOE 2 | . 2 . Classes Destroyed 8 | . 6 2 Worker 1 | . 1 . Builder 1 | . 1 . Tunneler 1 | . 1 . Recycler 2 | . 2 . Mechanic 1 | . . 1 Watcher 1 | . 1 . Grunt 8 | . 8 . Sentry 2 | . . 2 Best Kill Streak 4 | . 4 2 Combat Bots Only 3 | . 3 1 Max Kills in Single Turn 2 | . 2 1 Gunslinging . | . . . Exploded 1 | . 1 . Melee . | . . . Uniques/NPCs Destroyed . | . . . Combat | -11 -10 -9 -------- Run | Yrd Mat Mat Hostile Shots Fired 123 | . 65 58 Missed 34 | . 14 20 Damage Taken 1337 | . 685 652 Core 548 | . 120 428 Absorbed by Shields . | . . . Redirected to Shielding 51 | . 44 7 Core Remaining (%) 76 | 100 52 . Volleys Fired 69 | . 67 2 Largest 2 | . 2 1 Hottest 50 | . 50 25 Shots Fired 76 | . 74 2 Gun 69 | . 67 2 Cannon . | . . . Launcher 7 | . 7 . Special . | . . . Kinetic 69 | . 67 2 Thermal . | . . . Explosive 7 | . 7 . Electromagnetic . | . . . Robot Hit Streak 9 | . 9 . Robot Miss Streak 3 | . 3 2 Penetration Max . | . . . Secondary Targets . | . . . Shots Hit Robots 56 | . 44 12 Core Hits 28 | . 23 5 Critical Kills . | . . . Critical Parts Destroyed 7 | . 4 3 Critical Strikes 7 | . 4 3 Smash 7 | . 4 3 Melee Attacks 26 | . 13 13 Impact 26 | . 13 13 Slashing . | . . . Piercing . | . . . Sneak Attacks 6 | . 4 2 Combat Hostiles . | . . . Follow-up Attacks . | . . . Damage Inflicted 1391 | . 1019 372 Guns 237 | . 237 . Cannons . | . . . Explosions 398 | . 398 . Melee 669 | . 383 286 Ramming 87 | . 1 86 Kinetic 237 | . 237 . Thermal . | . . . Explosive 398 | . 398 . Electromagnetic . | . . . Impact 669 | . 383 286 Slashing . | . . . Piercing . | . . . Highest Corruption 5 | . 1 5 Average Corruption 1 | . 1 3 Corruption Purged . | . . . Corruption Blocked . | . . . Effects 4 | . 3 1 Message Errors 3 | . 2 1 Alerts 1 | . 1 . Overload Shots . | . . . Overflow Damage 308 | . 221 87 Projectiles . | . . . Explosions . | . . . Melee 308 | . 221 87 Knockbacks 2 | . 2 . Impact 2 | . 2 . Kinetic . | . . . Secondary . | . . . Self-Inflicted Damage 61 | . 22 39 Shots 2 | . 2 . Rammed 23 | . 1 22 Targets Rammed 23 | . 1 22 Kicked . | . . . Crushed . | . . . Highest Temperature 55 | . 55 . Average Temperature 10 | . 10 . Received Heat Transfer 588 | . 408 180 Siege Activations . | . . . Robots Corrupted . | . . . Combat Hostiles . | . . . Parts Fried 14 | . 9 5 Impact Corruptions 16 | . 11 5 Robots Melted . | . . . Combat Hostiles . | . . . Parts Melted . | . . . Heat Transferred . | . . . Parts Sabotaged . | . . . Parts Stolen . | . . . Parts Stripped . | . . . Power Chain Reactions . | . . . Alert | -11 -10 -9 ------- Run | Yrd Mat Mat Peak Influence 165 | . 165 55 Initial 39 | . . 39 Average 40 | . 69 22 Maximum Alert Level . | . . . Low Security (%) 100 | 100 100 100 Level 1 . | . . . Level 2 . | . . . Level 3 . | . . . Level 4 . | . . . Level 5 . | . . . High Security . | . . . Max Security . | . . . Squads Dispatched 3 | . 2 1 Investigation 2 | . 1 1 Extermination . | . . . Reinforcement 1 | . 1 . Assault . | . . . Garrison . | . . . Intercept . | . . . Searches Triggered . | . . . Construction Impeded . | . . . Haulers Reinforced . | . . . Active Scanning Responses . | . . . Cargo Convoy Interrupts . | . . . Stealth | -11 -10 -9 --------- Run | Yrd Mat Mat Distress Signals 1 | . 1 . Communications Jammed . | . . . Distress Signals . | . . . Times Spotted 22 | . 16 6 Peak Tracking Total 5 | . 4 5 Tactical Retreats . | . . . Traps | -11 -10 -9 ------- Run | Yrd Mat Mat Traps Triggered 2 | . 2 . Indirectly . | . . . Trap Hack Attempts . | . . . Triggered . | . . . Disarmed . | . . . Reprogrammed . | . . . Reused . | . . . Traps Extracted . | . . . Installed . | . . . Triggered . | . . . Machines | -11 -10 -9 ---------- Run | Yrd Mat Mat Machines Disabled . | . . . Max in Single Turn . | . . . Machines Repaired . | . . . Machines Dismantled . | . . . Machines Sabotaged . | . . . Overloaded Fab Kills . | . . . Hacking | -11 -10 -9 --------- Run | Yrd Mat Mat Machines Accessed 4 | . 3 1 Terminals 3 | . 2 1 Fabricators . | . . . Repair Stations . | . . . Recycling Units 1 | . 1 . Scanalyzers . | . . . Garrison Access . | . . . Total Hacks 11 | . 6 5 Successful 6 | . 3 3 Failed 5 | . 3 2 Catastrophic 3 | . 3 . Database Lockouts . | . . . Manual 4 | . 4 . Terminals 10 | . 5 5 Fabricators . | . . . Repair Stations . | . . . Recycling Units 1 | . 1 . Scanalyzers . | . . . Garrison Access . | . . . Terminal Hacks 5 | . 2 3 Prototype ID Bank 1 | . . 1 Alert Level 1 | . . 1 Locate Traps 1 | . 1 . Assault Status 1 | . 1 . Zone Layout 1 | . . 1 Fabricator Hacks . | . . . Repair Station Hacks . | . . . Recycling Unit Hacks . | . . . Scanalyzer . | . . . Garrison Access Hacks . | . . . Unauthorized Hacks 1 | . 1 . Terminals . | . . . Fabricators . | . . . Repair Stations . | . . . Recycling Units 1 | . 1 . Reject 1 | . 1 . Scanalyzers . | . . . Garrison Access . | . . . Data Cores Recovered . | . . . Used . | . . . Hacking Detections 3 | . 2 1 Full Trace Events 2 | . 1 1 Feedback Events . | . . . Feedback Blocked . | . . . Robot Schematics Acquired . | . . . Robots Built . | . . . Authchips . | . . . Time . | . . . Total Robot Build Rating . | . . . Part Schematics Acquired . | . . . Parts Built . | . . . Authchips . | . . . Time . | . . . Total Part Build Rating . | . . . Parts Repaired . | . . . Time . | . . . Parts Recycled . | . . . Recycled Matter . | . . . Retrieved Matter . | . . . Retrieved Components . | . . . Parts Scanalyzed . | . . . Part Schematics Acquired . | . . . Parts Damaged . | . . . Bothacking | -11 -10 -9 ------------ Run | Yrd Mat Mat Used RIF Installer . | . . . Robots Hacked . | . . . Non-combat . | . . . Combat . | . . . Robot Hacks Applied . | . . . Relay Couplers Released . | . . . Fabnet Peak Effective % . | . . . Robots Rewired . | . . . Allies Hacked . | . . . Hacks Repelled . | . . . Allies | -11 -10 -9 -------- Run | Yrd Mat Mat Total Allies . | . . . Largest Group . | . . . Highest-Rated Group . | . . . Highest-Rated Ally . | . . . Total Orders . | . . . Ally Attacks . | . . . Total Damage . | . . . Kills . | . . . Allies Corrupted . | . . . Allies Melted . | . . . Intel | -11 -10 -9 ------- Run | Yrd Mat Mat Robot Analysis Total . | . . . Derelict Logs Recovered . | . . . Drone Launches . | . . . Drone Recoveries . | . . . Exploration | -11 -10 -9 ------------- Run | Yrd Mat Mat Turns Passed 1668 | 71 673 924 Spaces Moved 570 | 40 301 229 Core 89 | 5 . 84 Treads 481 | 35 301 145 Legs . | . . . Wheels . | . . . Hover . | . . . Flight . | . . . Fastest Speed 50 | 50 160 50 Average Speed 154 | 146 160 148 Slowest Speed 350 | 160 160 350 Overloaded Moves . | . . . Propulsion Burnouts . | . . . Robots Hopped . | . . . Cave-ins Triggered . | . . . Exploration Rate (%) 24 | 4 48 21 Regions Visited 2 Branch Regions . Pre-discovered Areas . | . . . Known Exits Taken . | . . . Unknown Exits Taken 2 | 1 1 . Scrap Searched . | . . . Spaces Dug . | . . . Terrain Destroyed 23 | . 23 . Melee . | . . . Projectile . | . . . AOE 23 | . 23 . Terrain Rammed . | . . . Walls Destroyed . | . . . Machines Disabled . | . . . Actions | -11 -10 -9 --------- Run | Yrd Mat Mat Total 1254 | 53 411 790 Wait 516 | . 5 511 Move 568 | 39 300 229 Hop . | . . . Pick Up 26 | 8 13 5 Fast Attach . | . . . Attach 11 | 6 2 3 Detach . | . . . Swap 5 | . 4 1 Drop 10 | . 6 4 Fire 69 | . 67 2 Melee 26 | . 13 13 Ram 22 | . . 22 Kick . | . . . Crush 1 | . 1 . Escape Stasis . | . . . Rewire . | . . . Trap . | . . . Miscellaneous . | . . . Route ------- -11/Scrapyard -10/Materials -9/Materials History --------- Turn | Location | Event 3 | -11/Scrapyard | Discovered new exit (range 15) 72 | -11/Scrapyard | Entered Materials 318 | -10/Materials | Build established: Mutant 576 | -10/Materials | Discovered new exit (range 16) 745 | -10/Materials | Entered another Materials area 745 | -9/Materials | Evolved 2 slots: Utility x2 1566 | -9/Materials | Lost 3 parts (1p1n1u) 1619 | -9/Materials | Released all parts (4) 1655 | -9/Materials | Core integrity fell below 50% 1666 | -9/Materials | Core integrity fell below 20% 1669 | -9/Materials | Destroyed by B-36 Bruiser with Hammer Last Messages --------------- Integrated Corrupted Lgt. Treads (+2). Corrupted Lgt. Treads temporarily disabled. Dropped Lgt. Treads. Released Sml. Storage Unit. Released Hammer. Released Cooling System. Released Enh. Autogun. Slammed into R-06 Scavenger. Slammed into A-02 Transporter. Destabilizing: System corrupted (+2). Slammed into A-02 Transporter. Slammed into K-01 Serf. I#IWCY3FN LP2=| KYKHHG #QWFHFJ Slammed into B-36 Bruiser. Knocked back. Slammed into B-36 Bruiser. Destabilizing: System corrupted (+1). Slammed into B-36 Bruiser. Knocked back. Slammed into B-36 Bruiser. Map ----- +----------------------------------------------------+ | ?????????????? """" # #????????????????????? | | ???????????????"""" #% #????????????????????? | | ???????????????#####?#% #????????????????????? | | ??????????????????#### #????????????????????? | | ??????????????????+ #????????????????????? | | ??????????????????# #????????????????????? | | ??????????????????# ###??????????????????? | | ??????????????????+ ???????????? | | ??????????????????## ############# ???????????? | | ???????????????????# #???????????????????????????? | | ???????????????????# #???????????????????????????? | | ???????????????????# #???? ????????????????????? | | ??????#######+###### #??"" ????????????????????? | | ????? %# """ ???????????????????? | | ????? + """ ???????????????????? | | ????? # """ ???????????????????? | | ??????#######+######%#??"" ????????????????????? | | ???????????????????# #???? ????????????????????? | | ???????????????????# #???????????????????????????? | | ???????????????????#%#???????????????????????????? | | ???????????????????# #???????????????????????????? | | ???????????????????# #???????????????????????????? | | ???????????????????# #?????????????#?????????????? | | ???????????????????#%#???????????? #?????????????? | | ???????????????????# ############# #?????????????? | | ?????????????####### @ g ###???????????? | | ????????? b% %% #???????????? | | ???????? Y %%%%%% +???????????? | | ???????? k T #???????????? | | ??????? ############## ##???????????? | | ????????????????????????# #????????????? | | ????????????????????????# #????????????? | | ????????????????????????# #????????????? | | ????????????????????????# #????????????? | | ????????????????????????# " #????????????? | | ????????????????????????" ""k ???????????? | | ???????????????????????"Y "" !! /??????????? | | ??????????????????????#"" """ !! !!?????????? | | ???????????????????????## "" !!#????????? | | ????????????????????????# """ ==#????????? | | ????????????????????????# "?" ==?????????? | | ????????????????????????" ??? ##???????????? | | ????????????????????????? ??? ??????????????? | | ?????????????????????????????? ????????????????? | | ?????????????????????????????????????????????????? | | ?????????????????????????????????????????????????? | | ?????????????????????????????????????????????????? | | ?????????????????????????????????????????????????? | | ?????????????????????????????????????????????????? | | ?????????????????????????????????????????????????? | +----------------------------------------------------+ Best States ------------- Heat Dissipation 50 Energy Generation 14 Energy Capacity 265 Matter Stores 300 Matter Capacity 300 Sight Range 16 Robot Scan Range 14 Terrain Scan Density 10 Weapon Shielding 33 Evasion (%) 50 Recoil Reduction 2 Item Schematics ----------------- None Robot Schematics ------------------ None Fabricated ------------ Nothing Alien Tech Used ----------------- None Achievements -------------- None Challenges ------------ None Game ------ Seed CompactShadeScreen Manual? 0 Play Time 00:12:38 Cumulative 14.8 hours Start 2024.07.15 @ 19:38:40 End 2024.07.15 @ 19:47:55 Sessions 1 Manual Loads 0 Difficulty Rogue Special Mode None Game No. 45 Rogue 45 Adventurer 0 Explorer 0 Win Type - Total 0 Types 0/0/0/0/0/0/0/0/0 Lore% 21 Gallery% 21 Achievement% 17 Wizard Run 0 Options --------- Layout 1 ASCII 0 Keyboard 0 Movement Arrows Keybinds 0 Fullscreen 1 Font 28/Dina Map View 50x43 Zoom Use 0% Tactical HUD 0 Map Filters NONE Filters NONE Steam X RUN: 6a75f937-50ad-4423-b510-581b147fcf67